Cogmind - Beta 12 @@@ ROGUE MODE // 2023.04.15 @ 08:30:12 Player: maxwell Result: Destroyed by Y-45 Defender with Heavy Assault Rifle Performance ------------- Evolutions (0) 0 Regions Visited (2) 400 Robots Destroyed (47) 235 Value Destroyed (1205) 1205 Prototype IDs (2) 40 Alien Tech Used (0) 0 Bonus (-35) -35 TOTAL SCORE: 1845 Bonus ------- Friendly Fire -35 Cogmind --------- Core Integrity 0/250 Matter 280/300 Energy 44/100 System Corruption 0% Temperature Cool (40) Movement Treading (240) Ox1 Location -10/Mines Parts ------- > --- POWER (1) -------- (None) > --- PROPULSION (2) --- Light Treads Light Treads > --- UTILITY (2) ------ Improved Heat Sink High-capacity Storage Unit > --- WEAPON (2) ------- Hammer > --- INVENTORY (20) --- Improved Treads Improved Treads Improved Treads Improved Treads Huge Storage Unit Hardened Light Armor Plating Hardened Light Armor Plating Hardened Light Armor Plating Hardened Light Armor Plating Shield Generator Shield Generator Shield Generator Shield Generator Grenade Launcher Rocket Launcher Mining Claw Peak State ------------ > --- POWER ------------ Ion Engine > --- PROPULSION ------- Light Treads Light Treads > --- UTILITY ---------- Improved Heat Sink High-capacity Storage Unit > --- WEAPON ----------- Beam Cannon Beam Cannon > --- INVENTORY -------- Ion Engine Light Treads Light Treads Light Treads Improved Treads Improved Treads Improved Treads Improved Treads Huge Storage Unit Hardened Light Armor Plating Hardened Light Armor Plating Hardened Light Armor Plating Hardened Light Armor Plating Shield Generator Shield Generator Shield Generator Grenade Launcher Hammer Mining Claw [Rating: 12] Favorites ----------- Power Ion Engine Engine Ion Engine Propulsion Light Treads Treads Light Treads Leg Aluminum Leg Utility Improved Heat Sink Device Improved Heat Sink Storage High-capacity Storage Unit Weapon Beam Cannon Energy Gun Medium Laser Energy Cannon Beam Cannon Ballistic Gun Assault Rifle Launcher Grenade Launcher Slashing Weapon Mining Claw Build | -11 -10 -10 ------- Run | Jun Mat Min Slots Evolved . | . . . Power . | . . . Propulsion . | . . . Utility . | . . . Weapon . | . . . Parts Attached 17 | 2 6 9 Power 2 | . 1 1 Engine 2 | . 1 1 Core . | . . . Reactor . | . . . Propulsion 5 | 2 . 3 Treads 5 | 2 . 3 Leg . | . . . Wheel . | . . . Hover . | . . . Flight . | . . . Utility 3 | . 3 . Device 1 | . 1 . Storage 2 | . 2 . Processor . | . . . Hackware . | . . . Protection . | . . . Artifact . | . . . Weapon 7 | . 2 5 Energy Gun . | . . . Energy Cannon 4 | . 2 2 Ballistic Gun . | . . . Ballistic Cannon . | . . . Launcher 1 | . . 1 Special Weapon . | . . . Impact Weapon 1 | . . 1 Slashing Weapon 1 | . . 1 Piercing Weapon . | . . . Special Melee Weapon . | . . . Unidentified Prototypes . | . . . Parts Lost 7 | . . 7 Power 2 | . . 2 Propulsion 3 | . . 3 Utility . | . . . Weapon 2 | . . 2 Highest Loss Streak 4 | . . 4 To Critical Strikes 1 | . . 1 Average Slot Usage (%) 96 | . 94 99 Engine 13 | . 14 13 Treads 28 | . 28 28 Device 11 | . 9 14 Storage 14 | . 14 14 Energy Cannon 21 | . 22 21 Ballistic Gun 2 | . 4 . Slashing Weapon 1 | . . 4 Naked Turns . | . . . Heaviest Build 52 | 12 52 52 Greatest Support 40 | 40 40 40 Greatest Overweight (x) 1 | . 1 1 Average Overweight (x) . | . . 1 Largest Inventory Capacity 20 | 8 20 20 Average Capacity 18 | 8 17 20 Most Carried 20 | 6 20 20 Average Carried 13 | 5 9 18 Final Capacity 20 | 8 20 20 Final Carried 20 | 4 20 16 Class Distribution -------------------- 100% | Mutant Dominant Class ---------------- Mutant | -10/Materials Mutant | -10/Mines Resources | -11 -10 -10 ----------- Run | Jun Mat Min Matter Collected 407 | 200 149 58 Remotely . | . . . Salvage Created 1522 | . 866 656 Parts 96 | . 57 39 Haulers Intercepted 2 | . 2 . Recyclers Shooed . | . . . Parts Field Recycled . | . . . Retrieved Matter . | . . . Parts Self-Destructed . | . . . Prevented . | . . . Kills | -11 -10 -10 ------- Run | Jun Mat Min Combat Hostiles Destroyed 36 | . 14 22 Guns 3 | . 3 . Cannons 28 | . 10 18 AOE 3 | . . 3 Classes Destroyed 11 | . 7 4 Worker 1 | . . 1 Builder 1 | . 1 . Tunneler 1 | . . 1 Hauler 2 | . 2 . Recycler 1 | . 1 . Mechanic 1 | . 1 . Operator 1 | . 1 . Watcher 3 | . 3 . Swarmer 8 | . . 8 Grunt 27 | . 14 13 Sentry 1 | . . 1 Best Kill Streak 12 | . 3 12 Combat Bots Only 11 | . 2 11 Max Kills in Single Turn 4 | . 1 4 Gunslinging . | . . . Exploded 3 | . . 3 Melee . | . . . Uniques/NPCs Destroyed . | . . . Combat | -11 -10 -10 -------- Run | Jun Mat Min Damage Taken 1242 | . 405 837 Core 250 | . 54 196 Absorbed by Shields . | . . . Core Remaining (%) 100 | 100 . . Volleys Fired 101 | . 55 46 Largest 2 | . 2 2 Hottest 120 | . 120 120 Shots Fired 192 | . 106 86 Gun 26 | . 26 . Cannon 163 | . 80 83 Launcher 3 | . . 3 Special . | . . . Kinetic 23 | . 23 . Thermal 166 | . 83 83 Explosive 3 | . . 3 Electromagnetic . | . . . Robot Hit Streak 9 | . 9 9 Robot Miss Streak 4 | . 4 3 Penetration Max . | . . . Secondary Targets . | . . . Shots Hit Robots 116 | . 61 55 Core Hits 59 | . 28 31 Critical Kills 1 | . . 1 Critical Parts Destroyed . | . . . Critical Strikes 1 | . . 1 Meltdown 1 | . . 1 Melee Attacks 5 | . . 5 Impact . | . . . Slashing 5 | . . 5 Piercing . | . . . Sneak Attacks . | . . . Combat Hostiles . | . . . Follow-up Attacks . | . . . Damage Inflicted 2531 | . 1118 1413 Guns 181 | . 181 . Cannons 2000 | . 920 1080 Explosions 286 | . . 286 Melee 26 | . . 26 Ramming 38 | . 17 21 Kinetic 155 | . 155 . Thermal 2026 | . 946 1080 Explosive 286 | . . 286 Electromagnetic . | . . . Impact . | . . . Slashing 26 | . . 26 Piercing . | . . . Highest Corruption . | . . . Average Corruption . | . . . Corruption Purged . | . . . Corruption Blocked . | . . . Overload Shots . | . . . Overflow Damage 12 | . . 12 Projectiles 12 | . . 12 Explosions . | . . . Melee . | . . . Knockbacks . | . . . Impact . | . . . Kinetic . | . . . Secondary . | . . . Self-Inflicted Damage . | . . . Shots . | . . . Rammed 11 | . 3 8 Targets Rammed 11 | . 3 8 Kicked . | . . . Crushed . | . . . Highest Temperature 225 | . 225 186 Average Temperature 59 | . 55 64 Received Heat Transfer 588 | . 225 363 Siege Activations . | . . . Robots Corrupted . | . . . Combat Hostiles . | . . . Parts Fried . | . . . Impact Corruptions . | . . . Robots Melted 2 | . 1 1 Combat Hostiles 2 | . 1 1 Parts Melted 3 | . . 3 Heat Transferred 4144 | . 1961 2183 Parts Sabotaged . | . . . Parts Stolen . | . . . Parts Stripped . | . . . Power Chain Reactions . | . . . Missiles Intercepted . | . . . Alert | -11 -10 -10 ------- Run | Jun Mat Min Peak Influence 386 | . 220 386 Initial 28 | . . 28 Average 124 | . 105 156 Maximum Alert Level 1 | . 1 1 Low Security (%) 81 | 100 98 54 Level 1 18 | . 1 45 Level 2 . | . . . Level 3 . | . . . Level 4 . | . . . Level 5 . | . . . High Security . | . . . Max Security . | . . . Squads Dispatched 4 | . 4 . Investigation 1 | . 1 . Extermination . | . . . Reinforcement 3 | . 3 . Assault . | . . . Garrison . | . . . Intercept . | . . . Searches Triggered . | . . . Construction Impeded . | . . . Haulers Reinforced . | . . . Active Scanning Responses . | . . . Cargo Convoy Interrupts . | . . . Stealth | -11 -10 -10 --------- Run | Jun Mat Min Distress Signals 2 | . 1 1 Communications Jammed . | . . . Distress Signals . | . . . Times Spotted 50 | . 22 28 Peak Tracking Total 5 | . 4 5 Tactical Retreats 7 | . 3 4 Traps | -11 -10 -10 ------- Run | Jun Mat Min Traps Triggered 1 | . 1 . Indirectly . | . . . Trap Hack Attempts . | . . . Triggered . | . . . Disarmed . | . . . Reprogrammed . | . . . Reused . | . . . Traps Extracted . | . . . Installed . | . . . Triggered . | . . . Machines | -11 -10 -10 ---------- Run | Jun Mat Min Machines Disabled 2 | . 1 1 Max in Single Turn 1 | . 1 1 Machines Repaired . | . . . Machines Sabotaged . | . . . Overloaded Fab Kills . | . . . Hacking | -11 -10 -10 --------- Run | Jun Mat Min Machines Accessed 7 | . 6 1 Terminals 6 | . 5 1 Fabricators . | . . . Repair Stations . | . . . Recycling Units 1 | . 1 . Scanalyzers . | . . . Garrison Access . | . . . Total Hacks 21 | . 17 4 Successful 10 | . 9 1 Failed 11 | . 8 3 Catastrophic 2 | . 1 1 Database Lockouts . | . . . Manual 18 | . 14 4 Terminals 20 | . 16 4 Fabricators . | . . . Repair Stations . | . . . Recycling Units 1 | . 1 . Scanalyzers . | . . . Garrison Access . | . . . Terminal Hacks 7 | . 6 1 Part Schematic 1 | . 1 . Robot Analysis 5 | . 5 . Prototype ID Bank 1 | . . 1 Fabricator Hacks . | . . . Repair Station Hacks . | . . . Recycling Unit Hacks . | . . . Scanalyzer . | . . . Garrison Access Hacks . | . . . Unauthorized Hacks 3 | . 3 . Terminals 2 | . 2 . Botnet 2 | . 2 . Fabricators . | . . . Repair Stations . | . . . Recycling Units 1 | . 1 . Tunnel 1 | . 1 . Scanalyzers . | . . . Garrison Access . | . . . Data Cores Recovered 1 | . 1 . Used 1 | . 1 . Hacking Detections 6 | . 5 1 Full Trace Events . | . . . Feedback Events . | . . . Feedback Blocked . | . . . Robot Schematics Acquired . | . . . Robots Built . | . . . Authchips . | . . . Time . | . . . Total Robot Build Rating . | . . . Part Schematics Acquired 1 | . 1 . Parts Built . | . . . Authchips . | . . . Time . | . . . Total Part Build Rating . | . . . Parts Repaired . | . . . Time . | . . . Parts Recycled . | . . . Recycled Matter . | . . . Retrieved Matter . | . . . Retrieved Components . | . . . Parts Scanalyzed . | . . . Part Schematics Acquired . | . . . Parts Damaged . | . . . Bothacking | -11 -10 -10 ------------ Run | Jun Mat Min Used RIF Installer . | . . . Robots Hacked . | . . . Non-combat . | . . . Combat . | . . . Robot Hacks Applied . | . . . Relay Couplers Released . | . . . Fabnet Peak Effective % . | . . . Robots Rewired . | . . . Allies Hacked . | . . . Hacks Repelled . | . . . Allies | -11 -10 -10 -------- Run | Jun Mat Min Total Allies . | . . . Largest Group . | . . . Highest-Rated Group . | . . . Highest-Rated Ally . | . . . Total Orders . | . . . Ally Attacks . | . . . Total Damage . | . . . Kills . | . . . Allies Corrupted . | . . . Allies Melted . | . . . Intel | -11 -10 -10 ------- Run | Jun Mat Min Robot Analysis Total 5 | . 5 . Derelict Logs Recovered 1 | . . 1 Drone Launches . | . . . Drone Recoveries . | . . . Exploration | -11 -10 -10 ------------- Run | Jun Mat Min Turns Passed 3475 | 3 2125 1347 Spaces Moved 1138 | 1 851 286 Core . | . . . Treads 1138 | 1 851 286 Legs . | . . . Wheels . | . . . Hover . | . . . Flight . | . . . Fastest Speed 160 | 160 160 240 Average Speed 211 | 160 201 240 Slowest Speed 240 | 160 240 240 Overloaded Moves . | . . . Propulsion Burnouts . | . . . Robots Hopped . | . . . Cave-ins Triggered . | . . . Exploration Rate (%) 51 | 2 96 57 Regions Visited 2 Branch Regions 1 Pre-discovered Areas 2 | . 1 1 Known Exits Taken . | . . . Unknown Exits Taken 2 | 1 1 . Scrap Searched 2 | . . 2 Spaces Dug 8 | . . 8 Terrain Destroyed 24 | . . 24 Melee 1 | . . 1 Projectile . | . . . AOE 23 | . . 23 Terrain Rammed . | . . . Walls Destroyed . | . . . Machines Disabled . | . . . Actions | -11 -10 -10 --------- Run | Jun Mat Min Total 1996 | 4 1154 838 Wait 687 | . 204 483 Move 1136 | . 850 286 Hop . | . . . Pick Up 25 | . 24 1 Fast Attach 2 | . 2 . Attach 8 | 2 1 5 Detach 1 | . 1 . Swap 7 | . 3 4 Drop 13 | 2 11 . Fire 101 | . 55 46 Melee 5 | . . 5 Ram . | . . . Kick . | . . . Crush 11 | . 3 8 Escape Stasis . | . . . Rewire . | . . . Trap . | . . . Miscellaneous . | . . . Route ------- -11/Junkyard -10/Materials (discovered 5 exits: [*Mat x3] / *Min x2) -10/Mines (discovered 1 exit: [*Mat]) History --------- Turn | Location | Event 4 | -11/Junkyard | Discovered new exit (range 0) 4 | -11/Junkyard | Entered Materials 54 | -10/Materials | Discovered new exit (range 10) 300 | -10/Materials | Build established: Mutant 766 | -10/Materials | Discovered new exit (range 3) 805 | -10/Materials | Discovered new exit (range 9) 846 | -10/Materials | Discovered new exit (range 8) 1604 | -10/Materials | Discovered new exit (range 12) 2129 | -10/Materials | Entered Mines 2130 | -10/Mines | Learned location of Storage (-9) 2153 | -10/Mines | Found a hidden stash of uninstalled traps 2214 | -10/Mines | Excavation squad dispatched 2214 | -10/Mines | A large section of the Mines collapsed 2464 | -10/Mines | Excavation squad dispatched 2714 | -10/Mines | Excavation squad dispatched 2786 | -10/Mines | Core integrity fell below 50% 2810 | -10/Mines | Lost 3 parts (1p2n) 2868 | -10/Mines | Discovered new exit (range 10) 2920 | -10/Mines | Destroyed 11 combat bots 3063 | -10/Mines | Received a Rocket Launcher from a helpful Derelict 3162 | -10/Mines | Learned location of 1 exit from Materials 3468 | -10/Mines | Core integrity fell below 20% 3476 | -10/Mines | Destroyed by Y-45 Defender with Heavy Assault Rifle Last Messages --------------- Imp. Flight Unit Adv. Beam Cannon 03205_ K-01 Serf collects debris. 03227_ Slammed into K-01 Serf. 03232_ Searching scrap... 03232_ Found 36 Matter. 03232_ Found Lgt. Cannon. 03232_ Found Sml. Storage Unit. 03232_ Found Sensor Array. 03232_ Found 32 Matter. 03293_ G-47 Trooper destroyed. 03296_ G-34 Mercenary destroyed. 03467_ Ion Engine destroyed. 03469_ Critical hit (Burn: +37). 03469_ Beam Cannon destroyed. 03472_ Lgt. Treads destroyed. 03473_ Y-45 Defender destroyed. 03473_ Critical hit (Destroy). 03473_ Beam Cannon destroyed. 03476_ Critical hit (Burn: +37). Map ----- +----------------------------------------------------+ | | | | | | | | | | | | | | | | | | | | | | | | | | | | | | | | | ?????????????????????????????????????????????????? | | ?????????????????????????????????????????????????? | | ?????????????????????????????????????????????????? | | ???????????????????????######????????????????????? | | ???????????????????????#"!["##???????????????????? | | ???????????????????????""!/""#??? ##????????????? | | ????#######????????????? ! #?? #????????????? | | ????# #?????????????=%!Y#? #????????????? | | ????# ### #???????????###//## #????????????? | | ???## #?# #??????????## *@= #????????????? | | ?### ### #?????????## #?????????????? | | ## ## ########### ######?????????????? | | # # ##??????????????????? | | # """ ###### ##???????????????????? | | # """ ##??# #####k########????#???????????????? | | # """ #### #???# #????????? ##??????????????? | | ## """ #??## #??????## #??????????????? | | ?# ######### ##???? #??????????????? | | ?## ##??## #### #??????????????? | | ??## #???# [=% ????????????? | | ???# #???# *%[ #????????????????? | | ???## ##??## #### ### #????????????????? | | ????#####?### ##??# #??? #????????????????? | | ?????????## ##???# #????? ##????????????????? | | ?????????# ##????# #???????#?????????????????? | | ?????????# #?????# #?????????????????????????? | | ?????????## #?????# #?????????????????????????? | | ??????????# #?????# #?????????????????????????? | | ??????????## ##?????# #?????????????????????????? | | ???????????####??????# #?????????????????????????? | | ?????????????????????# #?????????????????????????? | | ?????????????????????# #?????????????????????????? | | ###########?????###### #?????????????????????????? | | # #?????#] #?????????????????????????? | +----------------------------------------------------+ Best States ------------- Heat Dissipation 39 Energy Generation 10 Energy Capacity 250 Matter Stores 300 Matter Capacity 300 Sight Range 16 Terrain Scan Density 10 Evasion (%) 40 Recoil Reduction 2 Item Schematics ----------------- Cargo Storage Unit | -10/Materials | Hacked Robot Schematics ------------------ None Fabricated ------------ Nothing Alien Tech Used ----------------- None Achievements -------------- None Challenges ------------ None Game ------ Seed HeavyMicrowarpBay Manual? 0 Play Time 00:11:48 Cumulative 296.1 hours Start 2023.04.13 @ 06:04:44 End 2023.04.15 @ 08:30:12 Sessions 4 Manual Loads 0 Difficulty Rogue Special Mode None Game No. 444 Rogue 421 Adventurer 4 Explorer 19 Win Type - Total 12 Types 10/0/0/2/0/0/0/0/0 Lore% 71 Gallery% 91 Achievement% 74 Wizard Run 0 Options --------- ASCII 0 Keyboard 1 Movement Numpad Keybinds 0 Fullscreen 1 Font 18/SmallcapsGlow Map View 76x50 Tactical HUD 1 Map Filters NONE Filters NONE Steam 1 RUN: f664cd1a-938c-445a-bd30-23a413bba2a5